bitfinex/quotes_ETHUSD_20220123
["timestamp","ask_amount","ask_price","bid_price","bid_amount"]
[1642963322914,0.1648,2426.6,2425.8,1.893]
[1642963323116,0.1648,2426.6,2425.8,1.96274116]
[1642963323314,0.1648,2427.1,2426.5,0.16394743]
[1642963323520,9.01447705,2427.2,2426.6,0.593]
[1642963323521,4.04375251,2426.8,2426.6,0.593]
[1642963323716,4.04375251,2426.9,2426.6,0.66274116]
[1642963323975,4.04375251,2426.9,2426.6,0.96274116]
[1642963324183,4.04375251,2427.1,2426.6,0.96274116]
[1642963324584,4.04375251,2427.2,2426.6,0.96274116]
[1642963324779,4.04375251,2427.2,2426.7,0.1648]
[1642963324980,3.86210513,2426.7,2426.3,0.593]
[1642963325179,3.86210513,2426.7,2426.2,0.06974116]
[1642963325378,5.20585764,2426.7,2426.2,0.06974116]
[1642963325580,0.24888662,2426.4,2426.2,0.06974116]
[1642963325782,0.24888662,2426.4,2426.0,2.6937186]
[1642963326184,0.24888662,2426.4,2426.0,1.6937186]
[1642963326379,0.24888662,2426.4,2426.1,1.0]
[1642963326579,5.20585764,2426.7,2426.1,0.3]
[1642963326783,5.20585764,2426.7,2426.0,1.6937186]
[1642963327617,4.04375251,2426.6,2425.8,0.1648]
[1642963327827,4.04375251,2426.6,2425.7,1.593]
[1642963327828,4.20855251,2426.6,2426.0,0.3]
[1642963328033,4.20855251,2426.6,2425.4,0.1648]
[1642963328034,1.43659909,2425.6,2425.4,0.1648]
[1642963328229,1.43659909,2425.6,2425.5,3.5]
[1642963328428,4.46258648,2426.1,2425.5,3.5]
[1642963328629,2.82381863,2426.0,2425.2,0.02]
[1642963328826,0.90932389,2425.5,2425.2,0.02]
[1642963330828,2.69454543,2425.9,2425.2,0.02]
[1642963331028,0.20629,2426.0,2425.2,0.02]
[1642963331231,0.1648,2425.9,2425.2,0.02]
[1642963331472,2.58824667,2425.9,2425.2,0.02]
[1642963332069,1.11839057,2425.7,2425.2,0.02]
[1642963332270,0.1648,2425.9,2425.2,0.02]
[1642963332475,0.71554109,2425.8,2425.4,0.71487827]
[1642963332671,2.72212911,2426.2,2425.4,0.71487827]
[1642963332672,0.17776383,2426.2,2425.4,0.71487827]
[1642963332875,0.1648,2426.2,2425.5,0.3]
[1642963333172,0.00361832,2425.8,2425.5,0.3]
[1642963333771,0.00361832,2425.8,2425.4,1.3]
[1642963334976,0.00361832,2425.8,2425.5,0.74399627]
[1642963335818,0.00361832,2425.8,2425.6,2.85020404]
[1642963336022,0.1648,2426.4,2425.7,5.9]
[1642963336216,0.1648,2426.4,2425.8,0.593]
[1642963336620,0.1648,2426.4,2426.2,0.17709115]
[1642963337024,0.1648,2426.4,2426.3,2.61974116]
[1642963337224,4.05203582,2426.9,2426.3,3.51274116]
[1642963337427,7.5948,2427.4,2426.3,4.51274116]
[1642963337428,4.05203582,2427.0,2426.3,4.51274116]
[1642963337631,4.05203582,2427.0,2426.4,1.0]
[1642963337826,4.05203582,2427.1,2426.4,1.593]
[1642963338024,4.05203582,2427.1,2426.4,2.8001]
[1642963338421,0.93408244,2426.9,2426.4,2.8001]
[1642963338622,0.93408244,2426.9,2426.4,3.8309]
[1642963339091,0.93408244,2426.9,2426.4,3.83193006]
[1642963339692,0.93408244,2426.9,2426.4,3.99673006]
[1642963340297,0.93408244,2426.9,2426.6,0.74399627]
[1642963340498,0.93408244,2426.9,2426.6,0.92359929]
[1642963340695,0.93408244,2426.9,2426.6,0.30103006]
[1642963341094,0.93408244,2426.9,2426.6,0.00103006]
[1642963341293,4.99790341,2426.9,2426.6,0.00103006]
[1642963341694,4.06382097,2427.0,2426.6,0.00103006]
[1642963341997,6.53675491,2427.3,2426.6,0.00103006]
[1642963341998,4.06382097,2427.1,2426.6,0.00103006]
[1642963342723,0.84256674,2427.0,2426.6,0.00103006]
[1642963342930,0.00335798,2426.8,2426.6,0.00103006]
[1642963343928,0.00335798,2426.8,2426.6,4.40103006]
[1642963344124,0.00335798,2426.8,2426.7,1.0]
[1642963344327,0.00335798,2426.8,2426.7,1.59403006]
[1642963345028,4.22862097,2427.6,2426.9,0.03382439]
[1642963345328,0.1648,2427.6,2427.0,0.7577]
[1642963345530,0.1648,2427.6,2427.0,1.35873006]
[1642963346126,0.1648,2427.6,2427.1,4.99530552]
[1642963346365,0.1648,2427.6,2427.2,0.893]
[1642963346568,0.1648,2427.6,2427.3,1.03038]
[1642963346769,0.1648,2427.6,2427.4,0.6]
[1642963346969,4.06452097,2427.9,2427.5,0.593]
[1642963347169,4.06452097,2427.9,2427.5,0.89403006]
[1642963347471,4.06382097,2427.8,2427.6,3.5]
[1642963347669,4.06382097,2427.8,2427.7,1.0]
[1642963347871,4.06382097,2427.8,2427.7,0.87397158]
[1642963348073,4.06452097,2427.9,2427.7,0.00103006]
[1642963348474,0.0007,2427.9,2427.7,0.94703006]
[1642963349277,0.0007,2427.9,2427.7,1.24703006]
[1642963349477,0.0007,2427.9,2427.8,0.1647]
[1642963349683,4.06382097,2428.1,2427.9,3.65]
[1642963349882,4.06382097,2428.4,2428.0,0.7577]
[1642963350125,4.06382097,2428.4,2428.0,2.0577]
[1642963350315,4.06382097,2428.4,2428.0,1.0577]
[1642963350518,4.06382097,2428.4,2428.0,2.0577]
[1642963350727,8.02437157,2429.1,2428.0,3.91874856]
[1642963350728,4.06382097,2428.5,2428.0,3.91874856]
[1642963350919,4.06382097,2428.5,2428.0,4.91874856]
[1642963351320,4.06382097,2428.6,2428.0,4.91874856]
[1642963351722,4.06382097,2428.6,2428.0,2.0577]
[1642963352222,1.1036321,2428.2,2428.0,0.7577]
[1642963352526,1.1036321,2428.2,2427.9,0.00103002]
[1642963352723,1.1036321,2428.2,2427.9,0.00102996]
[1642963353524,5.16745307,2428.2,2427.9,0.00102996]
[1642963353721,4.06382097,2428.1,2427.9,0.00102996]
[1642963353973,8.1147,2428.0,2427.9,4.10102996]
[1642963354173,12.17852097,2428.0,2427.9,4.10102996]
[1642963354375,12.01382097,2428.0,2427.9,4.10102996]
[1642963354977,0.1647,2428.1,2427.9,1.4301897]
[1642963355182,0.1647,2428.1,2427.9,1.43121964]
[1642963356978,0.1147,2428.1,2427.9,1.43121964]
[1642963357817,3.75312754,2428.0,2427.9,0.85922056]
[1642963360620,3.95941754,2428.0,2427.9,0.85922056]
[1642963361473,4.12411754,2428.0,2427.9,0.85922056]
[1642963362171,3.91782754,2428.0,2427.9,0.85922056]
[1642963362373,4.12411754,2428.0,2427.9,0.85922056]
[1642963362583,4.12411754,2428.0,2426.9,8.85744116]
[1642963362584,1.38038931,2427.2,2426.9,8.7877]
[1642963362785,1.38038931,2427.2,2427.1,0.00102992]
[1642963362979,7.13038931,2427.2,2427.1,0.00102992]
[1642963364188,7.57580977,2427.2,2427.1,4.10102992]
[1642963364787,1.82580977,2427.2,2427.1,4.10102992]
[1642963365418,1.82580977,2427.2,2427.1,0.00102992]
[1642963365917,6.42580977,2427.2,2427.1,0.00102992]
[1642963366425,1.82580977,2427.2,2427.1,0.00102992]
[1642963366816,6.52580977,2427.2,2427.1,0.00102992]
[1642963367922,6.52890439,2427.2,2427.1,0.00022992]
[1642963368721,5.14851508,2427.2,2427.1,0.00022992]
[1642963369376,4.70309462,2427.2,2427.1,0.00022992]
[1642963370383,5.38401664,2427.2,2427.1,0.00022992]
[1642963372082,4.70309462,2427.2,2427.1,0.00022992]
[1642963374927,4.70309462,2427.2,2427.1,0.10022992]
[1642963376130,0.00309462,2427.2,2427.1,0.10022992]
[1642963376775,2.65309462,2427.2,2427.1,0.10022992]
[1642963377367,0.00309462,2427.2,2427.1,0.10022992]
[1642963377968,1.0141901,2427.4,2427.1,0.10022992]
[1642963378772,0.16789462,2427.4,2427.1,0.10022992]
[1642963379073,0.00309462,2427.4,2427.2,0.1647]
[1642963379378,0.00309462,2427.4,2427.3,0.06976986]
[1642963379576,0.55303109,2427.8,2427.3,0.82849977]
[1642963379774,0.55303109,2427.8,2427.4,3.28107399]
[1642963379972,0.55303109,2427.8,2427.5,0.593]
[1642963380219,0.55303109,2427.8,2427.6,0.1647]
[1642963380517,0.55303109,2427.8,2427.6,0.75872991]
[1642963380924,0.55303109,2427.8,2427.6,1.05872991]
[1642963382329,0.55303109,2427.8,2427.7,7.86432605]
[1642963382527,1.35909,2428.8,2427.8,4.95]
[1642963382528,6.36235891,2428.8,2427.8,4.95]
[1642963382728,5.04485891,2428.9,2427.9,4.14664474]
[1642963382934,5.04485891,2429.1,2428.1,1.03009]
[1642963383131,5.04485891,2429.3,2428.2,4.15570414]
[1642963383326,5.04485891,2429.3,2428.2,4.526541]
[1642963383525,5.04485891,2429.3,2428.3,1.0]
[1642963383726,8.71489079,2429.4,2428.4,0.593]
[1642963383969,5.04485891,2429.3,2428.5,1.02993]
[1642963384170,3.67003188,2429.4,2428.6,0.593]
[1642963384171,3.21862207,2429.4,2428.6,0.593]
[1642963384370,3.21862207,2429.4,2428.6,0.893]
[1642963384569,3.21862207,2429.4,2428.6,2.193]
[1642963385075,0.86608488,2428.9,2428.6,2.193]
[1642963385273,0.86608488,2428.9,2428.6,0.6]
[1642963385472,0.1645,2428.8,2428.4,0.10102981]
[1642963385675,0.34769816,2428.1,2428.0,0.3]
[1642963386478,0.34769816,2428.1,2427.9,0.3]
[1642963386680,0.34769816,2428.1,2427.5,1.1647]
[1642963386876,0.34769816,2428.1,2427.6,3.5]
[1642963386877,0.74612584,2427.7,2427.6,3.5]
[1642963387078,0.74612584,2427.7,2427.5,0.1647]
[1642963388125,0.74612584,2427.7,2426.9,0.1647]
[1642963388323,0.4676572,2427.3,2426.9,0.7647]
[1642963388523,1.17072776,2428.1,2426.9,1.83450701]
[1642963388721,1.17072776,2428.1,2427.0,0.06980701]
[1642963388924,1.17072776,2428.1,2427.1,0.1647]
[1642963389322,1.17072776,2428.1,2427.1,0.23450701]
[1642963389523,0.75529665,2427.6,2427.1,0.23450701]
[1642963390825,0.75529665,2427.6,2427.1,0.06980701]
[1642963392272,0.1647,2428.0,2427.1,0.06980701]
[1642963392778,0.1647,2428.0,2427.2,1.03046]
[1642963392972,0.00284908,2427.5,2427.3,0.3]
[1642963393173,0.00284908,2427.5,2427.4,3.993]
[1642963393573,0.90283617,2428.1,2427.4,1.7577]
[1642963393975,0.90283617,2428.1,2427.4,0.7577]
[1642963394177,0.31094687,2427.7,2427.4,0.7577]
[1642963394375,0.31094687,2427.7,2427.4,0.8577]
[1642963394979,0.31094687,2427.7,2427.4,0.1]
[1642963394980,4.02651029,2427.5,2427.4,0.1]
[1642963395217,4.02651029,2427.5,2426.7,1.3053]
[1642963395421,4.02651029,2427.5,2426.8,3.5]
[1642963395617,4.02651029,2427.5,2426.8,3.56980701]
[1642963395815,0.1647,2428.0,2426.9,0.06980701]
[1642963396018,0.20629,2427.9,2426.9,0.06980701]
[1642963396217,0.01241503,2428.1,2426.9,3.12683034]
[1642963396218,0.1647,2427.8,2426.9,3.12683034]
[1642963396418,4.3861,2428.3,2427.0,1.78826]
[1642963396615,0.1647,2428.2,2427.1,3.37775685]
[1642963396819,0.12947337,2428.4,2427.2,0.593]
[1642963397019,0.12947337,2428.4,2427.3,3.79005121]
[1642963397219,0.12947337,2428.4,2427.4,0.593]
[1642963397421,0.12947337,2428.4,2427.5,2.87316466]
[1642963397617,0.12947337,2428.4,2427.6,1.593]
[1642963397618,0.77975939,2428.1,2427.6,1.593]
[1642963397821,0.12947337,2428.4,2427.6,1.593]
[1642963397822,0.43402365,2427.7,2427.6,1.593]
[1642963398028,0.43402365,2427.7,2427.6,0.593]
[1642963398029,0.43664354,2427.7,2427.6,0.593]
[1642963398222,0.43664354,2427.7,2427.0,2.3272]
[1642963398524,0.66526621,2427.2,2427.1,4.093]
[1642963398723,0.66526621,2427.2,2427.1,3.5]
[1642963399271,0.00261989,2427.7,2427.0,0.1647]
[1642963399673,0.00261989,2427.7,2426.9,1.0]
[1642963399878,0.00261989,2427.7,2426.9,1.1647]
[1642963400075,0.00261989,2427.7,2427.0,0.06980701]
[1642963400277,0.73152042,2427.4,2427.0,0.06980701]
[1642963400479,0.73152042,2427.4,2427.0,0.01980701]
[1642963400680,0.73152042,2427.4,2426.9,1.1647]
[1642963400879,0.73152042,2427.4,2426.9,1.7647]
[1642963402479,0.48226262,2427.0,2426.9,1.7647]
[1642963403122,0.48226262,2427.0,2426.9,0.6]
[1642963403430,0.00260343,2427.3,2426.8,2.193]
[1642963404022,0.00260343,2427.3,2426.8,1.6]
[1642963404224,1.15589685,2427.1,2426.8,1.3]
[1642963404423,0.77037386,2427.0,2426.8,0.3]
[1642963404624,0.77037386,2427.0,2426.7,0.6]
[1642963404823,0.77037386,2427.0,2426.6,1.7648]
[1642963405023,0.00260343,2427.3,2426.6,1.7648]
[1642963405224,0.00260343,2427.3,2426.7,0.06970167]
[1642963406030,0.00260343,2427.3,2426.7,0.36970167]
[1642963406467,0.75176147,2426.9,2426.7,0.36970167]
[1642963406867,0.00260343,2427.3,2426.7,0.36970167]
[1642963407466,0.00260343,2427.3,2426.7,0.06970167]
[1642963407874,0.16758329,2427.6,2426.7,0.36970167]
[1642963408075,0.70248138,2427.2,2426.7,0.36970167]
[1642963408277,0.70248138,2427.2,2426.7,1.40046167]
[1642963408473,3.6573,2427.5,2426.7,2.43116167]
[1642963408681,0.00278329,2427.6,2426.8,0.06970167]
[1642963408877,0.00278329,2427.6,2426.9,0.80523138]
[1642963409075,0.00278329,2427.6,2427.0,3.71941107]
[1642963409275,0.1647,2428.6,2427.3,1.03024]
[1642963409478,0.8275125,2428.3,2427.6,2.36046]
[1642963409675,0.8275125,2428.3,2427.7,0.7577]
[1642963410130,0.8275125,2428.3,2427.7,2.12740167]
[1642963410520,1.09663283,2428.6,2427.7,2.12740167]
[1642963410722,2.27129547,2428.5,2427.7,2.12740167]
[1642963410924,0.29417337,2428.4,2427.7,0.593]
[1642963411125,2.58191036,2428.3,2427.4,0.1647]
[1642963411333,0.1647,2428.2,2427.2,4.16040167]
[1642963411523,0.1647,2428.2,2427.2,4.76040167]
[1642963411722,0.76408806,2427.3,2427.2,4.6907]
[1642963411923,0.76408806,2427.3,2427.2,1.6]
[1642963412124,0.76408806,2427.3,2427.2,0.6]
[1642963412323,0.76408806,2427.3,2427.2,0.3]
[1642963412626,1.2505597,2427.8,2427.2,0.3]
[1642963412826,4.0576,2428.0,2427.1,1.3]
[1642963413029,4.0576,2428.0,2427.1,0.3]
[1642963413228,0.1647,2428.0,2427.2,2.0609]
[1642963413429,0.78813924,2427.8,2427.4,0.72388634]
[1642963413628,0.78813924,2427.8,2427.5,0.1647]
[1642963413868,0.78813924,2427.8,2427.4,0.1647]
[1642963414063,0.78813924,2427.8,2427.4,1.1647]
[1642963414263,0.78813924,2427.8,2427.4,0.1647]
[1642963414464,0.78813924,2427.8,2427.3,3.73058167]
[1642963414666,0.78813924,2427.8,2427.3,3.66088]
[1642963414863,0.78813924,2427.8,2427.3,1.6]
[1642963415067,0.78813924,2427.8,2427.3,1.0]
[1642963415667,0.78813924,2427.8,2427.2,2.63043]
[1642963417273,0.78813924,2427.8,2427.2,2.88921395]
[1642963417632,0.78813924,2427.8,2427.2,2.63043]
[1642963417829,0.00274572,2427.7,2427.2,2.63043]
[1642963418941,0.00274572,2427.7,2427.2,1.63043]
[1642963419732,1.49041467,2427.4,2427.2,1.03043]
[1642963419935,1.49041467,2427.4,2426.7,3.0034]
[1642963419936,1.49041467,2427.4,2426.5,0.1647]
[1642963420140,0.1648,2427.3,2426.6,3.5]
[1642963420733,2.46400674,2427.5,2426.6,3.5]
[1642963420734,0.1648,2427.4,2426.6,3.5]
[1642963420934,3.98434572,2427.7,2427.2,0.47642151]
[1642963421138,0.00274572,2427.7,2427.2,0.47642151]
[1642963421382,0.00274572,2427.7,2427.3,0.23440167]
[1642963421581,0.00274572,2427.7,2427.3,0.72740167]
[1642963421781,0.00274572,2427.7,2427.4,0.06970167]
[1642963421978,0.00274572,2427.7,2427.4,0.36970167]
[1642963422382,0.00274572,2427.7,2427.5,0.06970167]
[1642963422584,0.1648,2427.9,2427.5,0.06970167]
[1642963422783,0.1648,2427.9,2427.6,0.593]
[1642963422982,0.1648,2427.9,2427.6,0.893]
[1642963423183,0.1648,2427.9,2427.6,0.96270167]
[1642963423390,0.1648,2427.9,2427.6,1.26270167]
[1642963423687,0.1648,2427.9,2427.7,0.70950941]
[1642963424186,0.1648,2427.9,2427.6,1.193]
[1642963426522,0.1648,2427.9,2427.8,0.25136916]
[1642963426719,0.1648,2427.9,2427.8,1.00906916]
[1642963427119,0.1648,2427.9,2427.8,2.67877083]
[1642963427318,0.12947337,2428.4,2427.8,1.67877083]
[1642963427520,0.12947337,2428.4,2427.9,1.1647]
[1642963427727,0.65817501,2428.1,2427.9,0.7577]
[1642963427923,0.65817501,2428.1,2427.9,1.593]
[1642963428123,0.65817501,2428.1,2427.8,0.66970167]
[1642963428325,0.65817501,2428.1,2427.8,0.36970167]
[1642963428729,0.65817501,2428.1,2427.8,0.06970167]
[1642963429170,0.60817501,2428.1,2427.8,0.06970167]
[1642963431673,0.60817501,2428.1,2427.5,1.7647]
[1642963432275,0.60817501,2428.1,2427.5,2.79513]
[1642963432943,0.00252925,2428.0,2427.5,2.79513]
[1642963434544,0.16933749,2427.6,2427.5,2.79513]
[1642963435942,0.00252925,2428.0,2427.5,1.79513]
[1642963436144,0.00252925,2428.0,2427.5,1.03043]
[1642963436374,0.00252925,2428.0,2427.2,2.22557]
[1642963436375,1.52398266,2427.9,2427.2,2.22557]
[1642963437675,1.52398266,2427.9,2427.2,2.82557]
[1642963437873,0.00252102,2427.8,2427.2,3.82557]
[1642963438074,0.72949186,2427.6,2427.2,3.82557]
[1642963439181,0.00252102,2427.8,2427.2,3.82557]
[1642963439978,0.00252102,2427.8,2427.3,2.06087]
[1642963440221,0.00252102,2427.8,2427.4,0.6597]
[1642963440422,0.12947337,2428.4,2427.6,5.3]
[1642963440621,0.12947337,2428.4,2428.2,0.75834534]
[1642963440819,0.12947337,2428.4,2427.7,1.6597]
[1642963441017,0.12947337,2428.4,2427.7,2.2597]
[1642963441220,0.12947337,2428.4,2427.8,0.06970167]
[1642963441420,0.12947337,2428.4,2427.9,0.1647]
[1642963441817,0.12947337,2428.4,2428.0,2.0603]
[1642963442018,0.12947337,2428.4,2428.1,0.3]
[1642963442727,0.12947337,2428.4,2428.1,1.33013]
[1642963442925,0.0023315,2428.3,2428.1,1.33013]
[1642963443126,0.0023315,2428.3,2428.2,0.36970167]
[1642963443326,0.7775125,2428.6,2428.2,0.36970167]
[1642963443729,0.27639994,2428.9,2428.2,0.36970167]
[1642963443970,0.13819997,2428.9,2428.4,0.3]
[1642963444168,3.9861,2429.0,2428.4,0.6]
[1642963444368,3.9861,2429.0,2428.4,1.8927]
[1642963444572,5.11062143,2429.2,2428.4,2.8927]
[1642963444772,0.70804119,2428.6,2428.4,2.8927]
[1642963444976,0.70804119,2428.6,2428.4,2.7282]
[1642963445573,5.11062143,2429.2,2428.4,2.3872]
[1642963446672,0.7775125,2428.5,2428.4,2.3872]
[1642963447480,2.24719035,2429.1,2428.4,2.3872]
[1642963447721,7.35781178,2429.1,2428.4,2.3872]
[1642963447929,1.17589398,2428.7,2428.3,0.1647]
[1642963448124,2.44291641,2428.6,2428.3,0.1647]
[1642963448321,2.44291641,2428.6,2427.8,1.06970167]
[1642963448322,2.44291641,2428.6,2427.8,1.36970167]
[1642963448523,0.1647,2428.5,2427.9,1.0]
[1642963448722,0.1647,2428.5,2427.8,1.6]
[1642963448923,0.69617137,2428.4,2427.8,1.6]
[1642963449125,2.72213794,2428.3,2427.7,1.3]
[1642963449325,2.72213794,2428.3,2427.7,0.3]
[1642963449524,2.72213794,2428.3,2427.7,1.3]
[1642963449726,2.72213794,2428.3,2427.7,0.3]
[1642963449925,2.72213794,2428.3,2427.6,0.3]
[1642963450131,2.30049201,2428.3,2427.5,1.4647]
[1642963450325,2.27689004,2428.3,2427.5,0.7647]
[1642963450525,2.30791107,2428.3,2427.5,1.7647]
[1642963451039,2.35319995,2428.3,2427.5,1.7647]
[1642963451467,2.35319995,2428.3,2427.5,1.6]
[1642963451870,0.69617137,2428.4,2427.5,1.6]
[1642963452068,0.86087137,2428.4,2427.5,1.6]
[1642963452876,0.00229686,2428.2,2427.5,1.6]
[1642963453075,0.03707324,2428.2,2427.5,1.6]
[1642963456315,0.03707324,2428.2,2427.6,1.03038]
[1642963456720,0.03707324,2428.2,2427.7,0.3]
[1642963459571,0.03707324,2428.2,2427.7,1.3]
[1642963459972,0.03707324,2428.2,2427.7,0.3]
[1642963460476,2.80406131,2428.4,2427.7,0.3]
[1642963460873,0.53324461,2428.4,2427.7,0.3]
[1642963461876,0.53324461,2428.4,2427.9,0.93603133]
[1642963462072,0.53324461,2428.4,2427.9,1.23603133]
[1642963462272,0.53324461,2428.4,2428.0,0.3]
[1642963462477,0.1647,2428.8,2428.0,0.3]
[1642963462478,5.09014353,2428.8,2428.1,1.0302]
[1642963462745,6.99314804,2429.2,2428.2,0.3]
[1642963462746,5.09014353,2429.1,2428.2,0.3]
[1642963463543,0.53324461,2428.6,2428.2,0.3]
[1642963463743,0.53324461,2428.6,2428.3,0.54416748]
[1642963463943,5.09014353,2429.2,2428.4,1.03001]
[1642963464142,5.09014353,2429.2,2428.4,1.33001]
[1642963465646,5.09014353,2429.2,2428.5,0.1645]
[1642963466043,5.09014353,2429.3,2428.5,0.1645]
[1642963466250,5.09014353,2429.5,2428.6,1.0994457]
[1642963466487,5.09014353,2429.6,2428.7,0.99033002]
[1642963466684,5.09014353,2429.7,2429.1,0.85669843]
[1642963466883,5.09014353,2429.7,2429.2,0.1645]
[1642963467084,2.4885853,2429.9,2429.2,2.22366]
[1642963467283,2.4885853,2429.9,2429.3,0.3]
[1642963467486,6.78685804,2430.1,2429.3,0.3]
[1642963467691,6.84199242,2430.1,2429.3,0.3]
[1642963467896,6.84199242,2430.1,2429.3,1.3]
[1642963468088,9.33057772,2430.2,2429.3,1.3]
[1642963468687,9.17397923,2430.2,2429.3,1.3]
[1642963468889,9.17397923,2430.2,2429.3,0.3]
[1642963469096,0.80643931,2429.1,2428.8,1.0]
[1642963469294,0.80643931,2429.1,2428.9,3.5]
[1642963469495,0.80643931,2429.1,2428.9,3.8]
[1642963469692,0.80643931,2429.1,2428.9,0.3]
[1642963470126,0.80643931,2429.1,2428.5,1.3]
[1642963470321,0.80643931,2429.1,2428.6,3.5]
[1642963470519,0.80643931,2429.1,2428.7,1.0]
[1642963470926,0.80643931,2429.1,2428.6,0.3]
[1642963471120,0.80643931,2429.1,2428.5,0.3]
[1642963471324,0.80643931,2429.1,2428.4,1.7646]
[1642963471525,2.29911754,2429.0,2428.4,1.6]
[1642963472127,2.29911754,2429.0,2428.2,0.1645]
[1642963472330,0.1647,2428.9,2427.8,0.1647]
[1642963472528,0.1647,2428.9,2427.9,3.5]
[1642963472529,1.25036342,2428.4,2427.9,3.5]
[1642963472726,2.33029137,2428.3,2427.9,3.5]
[1642963472927,2.32028188,2428.3,2427.9,3.5]
[1642963473126,2.34598788,2428.3,2427.9,3.5]
[1642963473725,2.31782728,2428.3,2427.9,3.5]
[1642963473982,1.25036342,2428.4,2427.9,3.5]
[1642963474282,2.29699446,2428.3,2427.5,4.55712959]
[1642963474484,2.3892691,2428.3,2427.6,3.5]
[1642963474989,2.5955591,2428.3,2427.6,3.5]
[1642963475184,0.1647,2428.2,2427.6,3.5]
[1642963475385,0.20629,2428.1,2427.6,3.5]
[1642963475582,2.62729003,2428.1,2427.6,3.5]
[1642963475784,2.62729003,2428.1,2427.6,4.1]
[1642963476189,2.62729003,2428.1,2427.6,0.6]
[1642963476385,2.62729003,2428.1,2427.2,1.0]
[1642963476586,2.62729003,2428.1,2427.3,3.5]
[1642963476885,2.62729003,2428.1,2427.3,5.61759247]
[1642963477087,0.1647,2428.2,2427.4,1.3]
[1642963477284,0.1647,2428.2,2427.4,1.6]
[1642963477928,0.00224102,2428.0,2427.4,1.6]
[1642963478330,0.00224102,2428.0,2427.4,0.6]
[1642963478528,0.00224102,2428.0,2427.3,1.2678902]
[1642963478733,0.00224102,2428.0,2427.3,0.9678902]
[1642963479330,0.00224102,2428.0,2427.4,2.11769115]
[1642963479528,0.00224102,2428.0,2427.4,3.41769115]
[1642963480129,0.00224102,2428.0,2427.5,0.1647]
[1642963480833,1.32316719,2427.6,2427.5,0.1647]
[1642963481035,3.78873217,2427.6,2427.1,0.1647]
[1642963481239,2.61052004,2427.5,2427.2,3.5]
[1642963481482,1.32316719,2427.6,2426.7,1.19546]
[1642963481683,2.38717275,2427.5,2426.7,1.19546]
[1642963481888,2.38717275,2427.5,2426.8,2.11842604]
[1642963482092,2.55197275,2427.5,2426.8,2.11842604]
[1642963482790,0.20629,2427.4,2426.4,0.1648]
[1642963482999,1.29735567,2426.5,2426.4,0.1648]
[1642963484288,2.96516942,2427.0,2426.4,0.1648]
[1642963485626,1.15744422,2426.8,2426.4,0.1648]
[1642963485826,2.50979455,2426.7,2426.1,0.1648]
[1642963486236,24.2948,2426.6,2426.0,0.02]
[1642963486438,0.1648,2426.6,2426.0,0.02]
[1642963486832,24.2948,2426.6,2426.0,0.02]
[1642963487030,3.04964351,2426.5,2426.0,0.02]
[1642963487330,24.50109,2426.4,2426.0,0.02]
[1642963487733,0.37109,2426.4,2426.0,0.02]
[1642963487931,2.50585033,2426.3,2426.0,0.02]
[1642963488133,0.1648,2426.2,2426.0,0.02]
[1642963488532,0.20629,2426.4,2426.0,0.02]
[1642963488975,2.5,2426.3,2425.8,0.01]
[1642963489172,0.20629,2426.4,2425.8,0.01]
[1642963489173,1.28628517,2426.0,2425.8,0.01]
[1642963489373,24.50109,2426.4,2425.8,0.01]
[1642963489571,24.33629,2426.4,2425.8,0.01]
[1642963489772,0.1648,2426.3,2425.8,0.01]
[1642963490177,24.13,2426.1,2425.8,0.01]
[1642963490376,9.32680495,2425.9,2425.8,0.01]
[1642963490579,9.49160495,2425.9,2425.8,0.01]
[1642963490777,33.62160495,2425.9,2425.8,0.01]
[1642963492282,25.97160495,2425.9,2425.3,0.02]
[1642963492483,0.1648,2425.8,2425.3,0.02]
[1642963492950,0.2731,2426.0,2425.5,0.86389399]
[1642963493344,0.2731,2426.0,2425.6,0.06972946]
[1642963494545,0.2731,2426.0,2425.7,1.69140224]
[1642963494747,0.2731,2426.0,2425.7,1.99140224]
[1642963494948,0.2731,2426.0,2425.9,0.8145424]
[1642963495148,0.2731,2426.0,2425.9,0.9793424]
[1642963495348,0.2731,2426.0,2425.9,1.04907186]
[1642963495949,0.1648,2426.8,2425.9,1.04907186]
[1642963496150,0.1648,2426.8,2425.9,1.34907186]
[1642963496373,0.1648,2426.8,2425.9,1.18427186]
[1642963496784,0.1648,2426.8,2425.9,3.6752754]
[1642963496980,3.93519997,2427.2,2426.0,0.1648]
[1642963497181,3.93519997,2427.2,2426.0,1.1648]
[1642963497378,3.93519997,2427.2,2426.1,0.06972946]
[1642963497579,3.93519997,2427.2,2426.2,0.1648]
[1642963497780,3.93519997,2427.2,2426.1,0.06972946]
[1642963497781,1.50176578,2426.7,2426.1,0.06972946]
[1642963497981,0.37109,2426.6,2425.9,1.4648]
[1642963498182,0.36882324,2426.6,2425.9,0.1648]
[1642963498381,2.82269889,2426.5,2425.9,0.1648]
[1642963498581,0.1648,2426.4,2425.9,0.1648]
[1642963499385,0.37109,2426.4,2425.9,0.1648]
[1642963499580,2.46841707,2426.3,2425.9,0.1648]
[1642963499782,0.20629,2426.2,2425.9,0.1648]
[1642963500449,1.87285578,2426.7,2425.9,0.1648]
[1642963500649,1.87285578,2426.7,2425.9,0.98052401]
[1642963500650,0.1648,2426.7,2425.9,0.98052401]
[1642963500851,0.20629,2427.0,2426.0,0.06972946]
[1642963500852,0.1648,2426.9,2426.0,0.06972946]
[1642963501052,0.20629,2427.0,2426.1,0.1648]
[1642963501249,2.50281731,2427.1,2426.1,0.1648]
[1642963501250,2.57420259,2427.1,2426.1,0.1648]
[1642963501650,1.69402268,2427.1,2426.1,0.1648]
[1642963502250,4.03581837,2427.1,2426.1,0.1648]
[1642963502452,4.04564853,2427.1,2426.1,0.1648]
[1642963502651,4.03934147,2427.1,2426.1,0.1648]
[1642963503252,0.20629,2427.0,2426.1,0.1648]
[1642963503452,0.1648,2426.9,2426.1,0.1648]
[1642963503652,0.20629,2426.8,2426.1,0.1648]
[1642963503874,0.1648,2427.0,2426.1,0.1648]
[1642963504176,0.1648,2427.0,2426.2,0.83056957]
[1642963504376,1.69402268,2427.1,2426.2,0.83056957]
[1642963504874,1.69402268,2427.1,2426.3,0.3]